bitfinex-derivatives/quotes_ETHF0:USTF0_20251003
["timestamp","ask_amount","ask_price","bid_price","bid_amount"]
[1759495052739,4.64383811,4484.5,4484.4,0.83641]
[1759495053344,4.51203811,4484.5,4484.4,1.35221]
[1759495053544,3.4113,4484.5,4484.4,1.35221]
[1759495053942,3.9428,4484.5,4484.4,1.35221]
[1759495056640,3.4113,4484.5,4484.4,1.35221]
[1759495056846,3.4275,4484.5,4484.4,1.35221]
[1759495057147,3.959,4484.5,4484.4,1.35221]
[1759495058249,3.6425,4484.5,4484.4,1.35221]
[1759495058444,3.2078,4484.5,4484.4,6.35221]
[1759495058655,3.2078,4485.1,4485.0,1.26365]
[1759495058948,0.00204868,4485.5,4485.4,1.13412]
[1759495059149,0.00204868,4485.5,4485.4,1.35712]
[1759495061551,0.00204868,4485.5,4485.4,6.35712]
[1759495062346,0.00204868,4485.5,4485.4,1.35712]
[1759495064050,3.2078,4486.8,4486.7,1.134]
[1759495064051,3.6425,4486.8,4486.7,1.134]
[1759495064242,3.6425,4486.8,4486.7,0.9561]
[1759495064648,3.959,4486.8,4486.7,0.751]
[1759495064849,3.959,4486.8,4486.7,0.4403]
[1759495065046,8.96070422,4486.8,4485.9,0.3107]
[1759495065252,0.7512,4485.7,4485.6,0.7331]
[1759495065446,0.7512,4485.7,4485.6,0.9561]
[1759495065447,0.2197,4485.7,4485.6,0.9561]
[1759495065649,0.2197,4485.7,4485.6,0.7331]
[1759495065954,0.2197,4485.7,4485.6,0.9561]
[1759495066350,3.2078,4486.0,4485.7,0.40099]
[1759495066653,3.4275,4486.0,4485.9,0.7331]
[1759495066853,3.959,4486.0,4485.9,0.7331]
[1759495067758,3.2078,4486.0,4485.9,0.7331]
[1759495067945,3.4275,4486.0,4485.9,0.7331]
[1759495068150,3.959,4486.0,4485.9,0.7331]
[1759495068359,3.959,4486.0,4485.9,0.528]
[1759495069051,3.4275,4486.0,4485.9,0.7331]
[1759495070158,3.2078,4486.0,4485.9,0.7331]
[1759495071455,0.7512,4486.4,4486.3,0.7331]
[1759495071661,0.7512,4486.4,4486.3,0.9561]
[1759495071959,0.7512,4486.4,4486.3,0.223]
[1759495072156,0.7512,4486.4,4486.0,0.3107]
[1759495072460,0.7512,4486.4,4486.1,0.223]
[1759495073358,0.4347,4486.4,4486.1,0.223]
[1759495073564,0.7512,4486.3,4486.2,0.528]
[1759495074062,0.43640422,4486.8,4486.7,1.134]
[1759495074262,0.00170422,4486.8,4486.7,1.357]
[1759495075154,0.43640422,4486.8,4486.7,1.134]
[1759495075355,0.75290422,4486.8,4486.7,0.4403]
[1759495075554,0.75290422,4486.8,4486.7,0.751]
[1759495075750,0.75290422,4486.8,4486.7,0.9561]
[1759495075953,0.00170422,4486.8,4486.7,0.9561]
[1759495077060,0.00170422,4486.8,4486.7,5.9561]
[1759495078759,0.00170422,4486.8,4486.7,0.7331]
[1759495078960,0.75290422,4486.8,4486.7,0.7331]
[1759495079160,0.75290422,4486.8,4486.7,0.4403]
[1759495079564,0.75290422,4486.8,4486.7,0.2173]
[1759495079861,0.75290422,4486.8,4486.7,0.223]
[1759495080061,0.75290422,4486.8,4486.3,0.3107]
[1759495080062,0.3165,4486.1,4486.0,0.3107]
[1759495080264,0.7512,4486.1,4486.0,0.751]
[1759495080467,0.7512,4486.1,4486.0,0.9561]
[1759495080970,0.7512,4486.1,4486.0,1.0856]
[1759495081468,0.2197,4486.5,4486.4,0.7331]
[1759495081665,0.2197,4486.5,4486.4,0.9561]
[1759495081865,0.4347,4486.5,4486.4,0.9561]
[1759495082168,0.7615,4486.5,4486.4,0.9561]
[1759495083164,0.7615,4486.5,4486.4,0.751]
[1759495083568,0.8946,4486.5,4486.4,0.223]
[1759495083971,0.3268,4486.4,4485.6,0.40099]
[1759495084261,3.2078,4485.9,4485.8,0.40098]
[1759495084462,0.5435,4486.4,4486.3,0.7594]
[1759495084672,0.7546,4486.4,4486.3,0.9824]
[1759495085363,0.7546,4486.4,4486.3,0.223]
[1759495086672,0.3268,4486.3,4486.2,0.40094]
[1759495086967,0.4278,4486.3,4486.2,0.7594]
[1759495087166,0.4278,4486.3,4486.2,0.9824]
[1759495087671,0.2167,4486.3,4486.2,0.9824]
[1759495088372,3.7513,4486.6,4486.5,0.4342]
[1759495088570,3.9624,4486.6,4486.5,0.7594]
[1759495088764,3.6356,4486.6,4486.5,1.29392]
[1759495088966,0.2167,4486.6,4486.5,1.29392]
[1759495089268,0.2167,4486.6,4486.5,1.16032]
[1759495089269,0.7546,4486.6,4486.5,1.16032]
[1759495089470,0.7546,4486.6,4486.5,0.72612]
[1759495090271,0.7546,4486.6,4486.1,0.40095]
[1759495090272,0.2167,4486.3,4486.1,0.40095]
[1759495090466,0.7546,4486.3,4486.2,0.223]
[1759495090669,0.7546,4486.3,4486.2,0.4389]
[1759495090870,0.7546,4486.3,4486.2,1.16504]
[1759495091070,0.7546,4486.3,4486.2,1.38334]
[1759495091265,0.7546,4486.3,4486.2,1.16504]
[1759495091670,0.7546,4486.3,4486.2,1.38334]
[1759495093070,0.4278,4486.3,4486.2,1.38334]
[1759495093878,0.5435,4486.6,4486.5,0.83512]
[1759495094074,0.5435,4486.6,4486.5,1.29392]
[1759495094275,0.4278,4486.6,4486.5,1.29392]
[1759495094472,0.7546,4486.6,4486.5,1.16032]
[1759495095071,0.7546,4486.6,4486.5,0.893]
[1759495095266,0.2167,4486.6,4486.5,1.29392]
[1759495095572,0.00170422,4486.8,4486.7,1.1603]
[1759495095766,0.00170422,4486.8,4486.7,1.3833]
[1759495095974,3.2078,4487.6,4487.5,1.29383]
[1759495096167,3.2078,4487.6,4487.5,1.51683]
[1759495096972,3.42628188,4487.6,4487.5,1.51872857]
[1759495098678,0.21848188,4487.6,4487.5,1.51872857]
[1759495098877,0.75638188,4487.6,4487.5,1.51872857]
[1759495099075,0.00178188,4487.6,4487.5,1.51872857]
[1759495100081,0.00178188,4487.6,4487.5,6.51872857]
[1759495100577,3.4245,4489.3,4489.2,0.2159]
[1759495100774,3.4245,4489.3,4489.2,1.38308]
[1759495101177,3.9624,4489.3,4489.2,0.9824]
[1759495101580,3.96527875,4489.3,4489.2,0.9824]
[1759495102577,3.63847875,4489.3,4489.2,0.9824]
[1759495103477,3.96527875,4489.3,4489.2,0.9824]
[1759495103682,3.96527875,4489.3,4489.2,0.7594]
[1759495103882,3.96527875,4489.3,4489.2,0.9824]
[1759495105088,3.63847875,4489.3,4489.2,0.9824]
[1759495105878,5.63847875,4489.3,4489.2,0.9824]
[1759495106078,5.96267875,4489.3,4489.2,0.9824]
[1759495108381,5.96267875,4489.3,4489.2,0.7641]
[1759495108587,5.96267875,4489.3,4489.2,0.4389]
[1759495109286,5.63847875,4489.3,4489.2,1.35508]
[1759495110394,2.43067875,4489.3,4489.2,1.35508]
[1759495110992,2.75487875,4489.3,4489.2,1.35508]
[1759495112694,2.75487875,4489.3,4489.2,0.9544]
[1759495112992,2.75487875,4489.3,4489.2,0.223]
[1759495113186,0.858,4489.0,4488.9,0.4007]
[1759495113387,0.858,4489.0,4488.4,35.75387]
[1759495113388,0.5541,4489.0,4488.3,3.5217]
[1759495113588,0.7343,4488.4,4488.3,4.32786]
[1759495113789,0.4304,4488.4,4488.3,4.55086]
[1759495114388,0.7343,4488.4,4488.3,1.34306]
[1759495114596,0.7343,4488.4,4488.3,1.13976]
[1759495114797,0.7343,4488.4,4488.3,0.62376]
[1759495114995,0.7343,4488.4,4488.3,1.13976]
[1759495116701,0.7343,4488.4,4488.3,1.34306]
[1759495116899,0.4304,4488.4,4488.3,1.34306]
[1759495117199,0.4304,4488.4,4488.3,1.12006]
[1759495117498,0.7343,4488.4,4488.3,1.34306]
[1759495118495,3.9421,4488.9,4488.8,0.7193]
[1759495118799,3.9421,4488.9,4488.8,1.34301]
[1759495120402,3.9421,4488.9,4488.8,0.223]
[1759495120994,3.9421,4488.9,4488.8,0.62371]
[1759495121397,3.9421,4488.9,4488.8,1.13971]
[1759495121600,3.9421,4488.9,4488.8,1.34301]
[1759495122006,3.9421,4488.9,4488.8,0.9423]
[1759495122301,3.9421,4488.9,4488.8,0.223]
[1759495123301,3.9421,4488.9,4488.8,0.62371]
[1759495123498,3.9421,4488.9,4488.8,1.13971]
[1759495124098,3.9421,4488.9,4488.8,1.34301]
[1759495124697,3.9421,4488.9,4488.8,1.12001]
[1759495124895,3.9421,4488.9,4488.8,0.9423]
[1759495125196,3.9421,4488.9,4488.8,0.223]
[1759495125895,0.5167,4488.4,4488.3,0.40076]
[1759495126100,0.7343,4488.4,4488.3,1.34306]
[1759495126497,0.7343,4488.4,4488.3,0.739]
[1759495126702,0.7343,4488.4,4488.3,0.4251]
[1759495126904,0.7343,4488.4,4488.3,0.82586]
[1759495127791,0.7343,4488.4,4488.3,1.34306]
[1759495130609,0.4304,4488.4,4488.3,1.34306]
[1759495131600,0.3039,4488.7,4488.6,0.40073]
[1759495132208,0.7343,4488.7,4488.6,0.91673]
[1759495133506,0.7343,4488.7,4488.6,0.516]
[1759495133703,0.7343,4488.7,4488.6,0.2021]
[1759495133903,0.4304,4488.7,4488.4,0.40075]
[1759495134208,0.7343,4488.5,4488.4,1.12005]
[1759495138009,0.7343,4488.5,4488.4,1.34305]
[1759495138413,0.4304,4488.5,4488.4,1.34305]
[1759495138608,0.5167,4488.8,4488.7,0.40072]
[1759495138908,3.2078,4488.9,4488.8,1.12001]
[1759495139102,3.4206,4488.9,4488.8,1.34301]
[1759495140414,3.9421,4488.9,4488.8,0.9423]
[1759495140712,3.9421,4488.9,4488.8,1.34301]
[1759495140908,3.2078,4488.9,4488.8,1.34301]
[1759495141308,3.2078,4488.9,4488.8,0.9423]
[1759495141309,3.6382,4488.9,4488.8,0.9423]
[1759495141615,3.9421,4488.9,4488.8,1.34301]
[1759495144215,3.9421,4488.9,4488.8,1.12001]
[1759495144512,3.4206,4488.9,4488.8,1.34301]
[1759495144716,3.9517,4488.9,4488.8,0.9423]
[1759495145016,3.9517,4488.9,4488.8,1.35701]
[1759495145815,3.4206,4488.9,4488.8,1.35701]
[1759495146009,2.31857875,4489.3,4489.2,1.15378]
[1759495146010,2.00287875,4489.3,4489.2,1.15378]
[1759495146211,2.00287875,4489.3,4489.2,1.37678]
[1759495147610,1.92206026,4489.3,4489.2,1.37678]
[1759495147811,1.92206026,4489.3,4489.2,6.37678]
[1759495148714,1.92402862,4489.3,4489.2,6.37678]
[1759495154122,1.92402862,4489.3,4489.2,7.9727113]
[1759495154318,1.92402862,4489.3,4489.2,6.37678]
[1759495154521,0.03045862,4489.3,4489.2,7.9727113]
[1759495154723,0.4406,4490.0,4489.4,2.00329]
[1759495154919,0.4406,4490.0,4489.9,3.2078]
[1759495155117,0.4406,4490.0,4489.9,38.57441]
[1759495155719,0.44302744,4490.0,4489.9,38.57441]
[1759495159324,0.87842744,4490.0,4489.9,38.57141]
[1759495160324,0.87842744,4490.0,4489.9,3.60841]
[1759495160521,0.87842744,4490.0,4489.9,3.83141]
[1759495160723,0.87842744,4490.0,4489.9,0.40061]
[1759495160922,0.87842744,4490.0,4489.9,0.62361]
[1759495162724,0.66302744,4490.0,4489.9,0.62361]
[1759495162925,0.44302744,4490.0,4489.9,0.62361]
[1759495163129,0.87842744,4490.0,4489.9,0.62361]
[1759495169329,0.1259,4489.5,4489.4,4.80097931]
[1759495169633,0.8567,4489.5,4489.4,3.83146]
[1759495172630,0.8567,4489.5,4489.4,3.60846]
[1759495172832,0.8567,4489.5,4489.4,0.62366]
[1759495173831,0.8567,4489.5,4489.4,0.223]
[1759495174433,0.8567,4489.5,4489.4,0.62366]
[1759495175533,0.8567,4489.5,4489.4,0.40066]
[1759495175733,0.8567,4489.5,4489.4,0.62366]
[1759495176323,0.8567,4489.5,4489.4,0.223]
[1759495176529,0.8567,4489.5,4489.4,0.62366]
[1759495177232,0.8567,4489.5,4489.4,3.83146]
[1759495179834,0.43,4489.5,4489.4,3.83146]
[1759495181236,0.43,4489.5,4489.4,8.83146]
[1759495181827,0.12732744,4490.0,4489.9,0.40061]
[1759495182136,0.12732744,4490.0,4489.9,5.42819325]
[1759495183930,0.43442744,4490.0,4489.9,5.42819325]
[1759495184534,0.00242744,4490.0,4489.9,3.83141]
[1759495186130,0.43882744,4490.0,4489.9,3.83141]
[1759495188139,0.00242744,4490.0,4489.9,3.83141]
[1759495188740,0.00242744,4490.0,4489.9,44.63141]
[1759495188940,0.30952744,4490.0,4489.9,44.63141]
[1759495189136,0.43882744,4490.0,4489.9,79.36741]
[1759495190742,0.00242744,4490.0,4489.9,79.36741]
[1759495190938,7.44e-06,4490.0,4489.9,80.96332363]
[1759495191139,7.44e-06,4490.0,4489.9,79.36741]
[1759495196841,0.3071,4490.9,4490.8,0.40053]
[1759495197042,0.25564433,4490.9,4490.8,0.62353]
[1759495197844,0.25808112,4490.9,4490.8,0.62613488]
[1759495198044,0.00243679,4490.9,4490.8,0.80204306]
[1759495198946,0.30953679,4490.9,4490.8,0.80204306]
[1759495199147,0.30953679,4490.9,4490.8,2.56690775]
[1759495200652,6.79e-06,4490.9,4490.8,2.56690775]
[1759495200839,6.79e-06,4490.9,4490.8,4.16115122]
[1759495201045,6.79e-06,4490.9,4490.8,2.56690775]
[1759495201351,6.79e-06,4490.9,4490.8,7.56690775]
[1759495201944,0.32860679,4490.9,4490.8,43.36690775]
[1759495202943,0.32860679,4490.9,4490.8,2.16799957]
[1759495203147,5.75310679,4490.9,4490.8,0.00260488]
[1759495203349,5.75310679,4490.9,4490.8,0.22560488]
[1759495203553,0.75310679,4490.9,4490.8,0.22560488]
[1759495205848,0.75310679,4490.9,4490.8,0.00260488]
[1759495206249,5.75310679,4490.9,4490.8,0.22560488]
[1759495207346,5.75310679,4490.9,4490.1,3.2078]
[1759495207547,0.7531,4490.3,4490.2,0.62359]
[1759495208462,0.7531,4490.3,4490.2,0.62532669]
[1759495209043,0.7531,4490.3,4490.2,0.22473669]
[1759495210859,0.3286,4490.3,4490.2,0.22473669]
[1759495211052,6.79e-06,4490.9,4490.3,0.40058]
[1759495211256,6.79e-06,4490.9,4490.8,3.60833]
[1759495211456,6.79e-06,4490.9,4490.8,3.83133]
[1759495211656,6.79e-06,4490.9,4490.8,44.63133]
[1759495213758,6.79e-06,4490.9,4490.8,79.36033]
[1759495214246,6.79e-06,4490.9,4490.8,44.40833]
[1759495214445,6.79e-06,4490.9,4490.8,79.36033]
[1759495214758,0.54430679,4490.9,4490.8,79.13733]
[1759495214953,0.54430679,4490.9,4490.8,39.92998048]
[1759495215257,0.54430679,4490.9,4490.8,38.56033]
[1759495216157,0.75310679,4490.9,4490.8,38.97383]
[1759495219160,0.75310679,4490.9,4490.8,38.76103]
[1759495219360,0.75310679,4490.9,4490.8,38.55933]
[1759495220359,0.32860679,4490.9,4490.8,38.89393]
[1759495220557,0.32860679,4490.9,4490.8,4.35743]
[1759495220755,0.32860679,4490.9,4490.8,39.30743]
[1759495221461,0.32860679,4490.9,4490.8,38.97283]
[1759495222360,0.32860679,4490.9,4490.8,38.76003]
[1759495223357,0.32860679,4490.9,4490.8,3.81003]
[1759495223558,5.75310679,4490.9,4490.8,0.62353]
[1759495223859,5.75310679,4490.9,4490.8,0.223]
[1759495224559,5.75310679,4490.9,4490.3,3.2078]
[1759495224760,0.7531,4490.4,4490.3,3.60838]
[1759495224963,0.7531,4490.4,4490.3,3.83138]
[1759495225160,0.7531,4490.4,4490.3,4.03308]
[1759495226260,0.7531,4490.4,4490.3,3.81008]
[1759495226763,0.7531,4490.4,4490.3,4.03308]
[1759495228159,0.7531,4490.4,4490.3,0.223]
[1759495228460,5.7531,4490.4,4490.3,0.223]
[1759495231259,0.4135,4489.4,4489.3,3.2078]
[1759495231465,0.1307,4489.5,4488.5,36.32165048]
[1759495231466,0.2087,4488.6,4488.5,36.32165048]
[1759495231763,0.5335,4488.6,4488.5,37.24799048]
[1759495231961,0.5335,4488.6,4488.5,2.94649048]
[1759495232163,0.7403,4488.6,4488.5,0.4275]
[1759495232364,0.7403,4488.6,4488.5,0.65229596]
[1759495232868,0.7403,4488.6,4488.5,0.96479596]
[1759495233360,0.7403,4488.6,4488.5,0.65229596]
[1759495235760,0.7403,4488.6,4488.5,0.43719596]
[1759495235966,0.7403,4488.6,4488.5,0.21419596]
[1759495236166,0.7403,4488.6,4488.5,0.43719596]
[1759495237672,0.7403,4488.6,4488.5,0.65229596]
[1759495238967,0.1307,4489.0,4488.5,0.65229596]
[1759495238968,0.2126,4489.5,4489.4,1.14566]
[1759495239169,0.5443,4489.5,4489.4,1.05616]
[1759495239466,0.5443,4489.5,4489.4,0.223]
[1759495239467,0.8601,4489.5,4489.4,0.223]
[1759495240464,5.3317,4489.5,4489.1,0.40068]
[1759495240658,0.7352,4489.2,4489.1,0.61808]
[1759495240857,0.7352,4489.2,4489.1,0.84108]
[1759495241058,0.7352,4489.2,4489.1,1.36868]
[1759495241268,0.7352,4489.2,4489.1,0.6555]
[1759495244266,0.1249,4489.0,4488.6,3.2078]
[1759495244568,0.7352,4488.8,4488.7,0.223]
[1759495245670,0.7352,4488.8,4488.7,0.62372]
[1759495245870,0.7352,4488.8,4488.7,0.84112]
[1759495246066,0.7352,4488.8,4488.7,1.05622]
[1759495246465,0.7352,4488.8,4488.7,0.84112]
[1759495250376,0.7352,4488.8,4488.7,0.4404]
[1759495250767,0.7352,4488.8,4488.5,0.00179596]
[1759495250971,0.7352,4488.8,4488.6,0.223]
[1759495255373,0.7352,4488.8,4488.7,0.61812]
[1759495255576,0.7352,4488.8,4488.6,0.223]
[1759495255577,3.7521,4489.5,4489.4,0.40066]
[1759495255772,4.0679,4489.5,4489.4,1.36866]
[1759495255972,4.0679,4489.5,4489.4,1.05616]
[1759495256278,4.0679,4489.5,4489.4,0.6555]
[1759495257276,3.8611,4489.5,4489.4,0.968]
[1759495257477,4.0679,4489.5,4489.4,0.6555]
[1759495258281,0.8601,4489.5,4489.4,0.6555]
[1759495260482,0.8601,4489.5,4489.4,0.223]
[1759495260684,0.8601,4489.5,4489.4,0.4404]
[1759495260885,0.8601,4489.5,4489.4,0.968]
[1759495261277,0.8601,4489.5,4489.4,0.6555]
[1759495261683,0.8601,4489.5,4489.4,0.968]
[1759495261879,0.533,4489.9,4489.8,0.4175]
[1759495262178,0.8662,4489.5,4489.4,0.223]
[1759495262580,0.8662,4489.5,4489.4,0.4254]
[1759495263283,0.8662,4489.5,4489.4,0.82606]
[1759495263680,0.8662,4489.5,4489.4,1.04116]
[1759495264986,0.8662,4489.5,4489.4,0.6405]
[1759495265880,0.8662,4489.5,4489.4,0.223]
[1759495266780,0.8662,4489.5,4488.5,1.59444644]
[1759495266781,0.3303,4488.6,4488.5,1.59444644]
[1759495267087,0.7394,4488.6,4488.5,0.22479596]
[1759495267385,0.7394,4488.6,4488.5,0.42719596]
[1759495270377,0.7394,4488.6,4488.5,0.20419596]
[1759495270578,0.7394,4488.6,4488.5,0.42719596]
[1759495270781,0.7394,4488.6,4488.5,0.22479596]
[1759495271381,0.7394,4488.6,4488.5,0.42719596]
[1759495273788,0.7394,4488.6,4488.5,0.82793596]
[1759495274586,0.7394,4488.6,4488.5,0.22479596]
[1759495275581,0.7394,4488.6,4488.5,0.00179596]
[1759495275789,0.7394,4488.6,4488.5,0.22479596]
[1759495279890,0.7394,4488.6,4488.5,0.00179596]
[1759495280090,0.7394,4488.6,4488.5,0.22479596]
[1759495281089,0.7394,4488.6,4488.5,0.62553596]
[1759495281786,0.7394,4488.6,4488.5,0.22479596]
[1759495281992,0.7394,4488.6,4488.5,0.82793596]
[1759495282191,0.7394,4488.6,4488.5,0.42719596]
[1759495282392,0.7394,4488.6,4488.5,0.22479596]
[1759495286593,0.7394,4488.6,4488.5,0.84383596]
[1759495286991,0.7394,4488.6,4488.5,0.62553596]
[1759495287394,0.7394,4488.6,4488.5,0.22479596]
[1759495289404,1.24879568,4488.6,4488.5,0.22479596]
[1759495291999,1.24879568,4488.6,4488.5,0.00179596]
[1759495292202,0.3034,4486.9,4486.8,1.59265048]
[1759495292402,0.7354,4486.9,4486.8,0.223]
[1759495292599,0.7354,4486.9,4486.8,0.432]
[1759495292799,3.2078,4487.2,4486.8,0.9536]
[1759495293004,0.8653,4487.5,4487.4,0.82794]
[1759495293195,0.8653,4487.5,4487.4,0.6501]
[1759495293400,0.86705187,4487.5,4487.4,0.6501]
[1759495294305,0.86705187,4487.5,4487.4,0.432]
[1759495294506,0.86705187,4487.5,4487.4,0.223]
[1759495295701,0.86705187,4487.5,4487.4,0.432]
[1759495299607,0.86705187,4487.5,4487.4,0.223]
[1759495302914,0.86705187,4487.5,4487.4,0.432]
[1759495303115,0.86705187,4487.5,4487.4,0.9536]
[1759495303605,0.86705187,4487.5,4487.4,0.6501]
[1759495304115,0.86705187,4487.5,4487.4,0.432]
[1759495304406,0.86705187,4487.5,4487.4,0.223]
[1759495305114,0.7354,4487.2,4487.1,0.60986]
[1759495305309,0.7354,4487.2,4487.1,0.83286]
[1759495306314,0.7354,4487.2,4487.1,0.432]
[1759495307108,0.7354,4487.2,4487.1,0.223]
[1759495307912,0.7354,4487.2,4487.1,0.432]
[1759495310108,0.7354,4487.2,4486.8,0.00286671]
[1759495310310,0.7354,4486.9,4486.8,0.00286671]
[1759495310511,0.7354,4486.9,4486.8,0.22586671]
[1759495311409,0.7354,4486.9,4486.8,0.00286671]
[1759495311614,0.7354,4486.9,4486.8,0.22586671]
[1759495312804,0.7354,4486.9,4486.8,0.83575671]
[1759495313004,3.2078,4487.2,4486.8,0.83575671]
[1759495313005,3.2078,4487.2,4486.8,1.35735671]
[1759495313314,0.7354,4487.1,4487.0,0.7306]
[1759495316118,0.7354,4487.1,4487.0,0.4271]
[1759495319611,0.7354,4487.1,4487.0,0.209]
[1759495319817,0.3034,4486.9,4486.8,0.22586671]
[1759495320023,0.7354,4486.9,4486.8,0.00286671]
[1759495320216,0.7354,4486.9,4486.8,0.22586671]
[1759495320824,0.7354,4486.9,4486.8,0.00286671]
[1759495321025,0.7354,4485.9,4485.7,1.59265048]
[1759495321217,0.7354,4485.9,4485.8,0.209]
[1759495321416,0.7354,4485.9,4485.3,0.3035]
[1759495321417,0.432,4485.6,4485.5,1.80165048]
[1759495321618,0.7354,4485.6,4485.5,2.02465048]
[1759495322120,0.7354,4485.6,4485.5,2.02704498]
[1759495322824,0.5267,4485.6,4485.5,2.55964498]
[1759495323014,0.1299,4486.0,4485.5,2.55964498]
[1759495323015,0.1299,4486.0,4485.9,0.40097]
[1759495323213,0.2217,4486.1,4486.0,0.61556]
[1759495323520,0.2217,4486.1,4486.0,1.37496]
[1759495323719,0.7592,4486.1,4486.0,1.37496]
[1759495324627,0.7592,4486.1,4486.0,0.6595]
[1759495324819,0.7592,4486.1,4486.0,0.4449]
[1759495325014,0.7592,4486.1,4486.0,0.223]
[1759495325320,0.7592,4485.7,4485.6,0.4365]
[1759495325627,0.7592,4485.7,4485.6,0.6595]
[1759495325819,0.7592,4485.7,4485.6,1.06049]
[1759495326720,0.7592,4485.7,4485.6,1.37499]
[1759495327222,0.7592,4485.7,4485.6,0.83749]
[1759495327521,0.7592,4485.7,4485.6,1.0605]
[1759495329029,0.7592,4485.7,4485.6,1.375]
[1759495336527,0.7592,4485.7,4485.6,1.0605]
[1759495338923,0.7592,4485.7,4485.6,0.4365]
[1759495339124,0.7592,4485.7,4485.5,0.0023945]
[1759495339329,0.7592,4485.7,4485.6,0.223]
[1759495341836,0.7592,4485.7,4485.6,0.974]
[1759495342439,0.7592,4485.7,4485.6,1.0605]
[1759495342936,0.7592,4485.7,4485.6,1.375]
[1759495346128,0.5416,4485.7,4485.6,1.375]
[1759495346336,3.5602,4486.0,4485.9,0.7634]
[1759495346536,3.7793,4486.0,4485.9,0.7634]
[1759495346728,4.1093,4486.0,4485.9,0.7634]
[1759495346923,4.1093,4486.0,4485.9,1.16437]
[1759495347128,4.1093,4486.0,4485.9,0.7634]
[1759495348030,4.1093,4486.0,4485.9,0.444]
[1759495349830,3.7581,4486.0,4485.9,1.16437]
[1759495350435,3.2078,4486.0,4485.9,1.16437]
[1759495350936,3.5378,4486.0,4485.9,1.16437]
[1759495351134,3.5378,4486.0,4485.9,0.7634]
[1759495351334,3.7581,4486.0,4485.9,0.7634]
[1759495352341,3.7581,4486.0,4485.9,1.16437]
[1759495352741,3.7581,4486.0,4485.9,0.7634]
[1759495354743,3.887,4486.0,4485.9,0.7634]
[1759495354945,4.1042,4486.0,4485.9,0.444]
[1759495356645,4.1042,4486.0,4485.9,0.84497]
[1759495357247,4.1042,4486.0,4485.9,0.444]
[1759495359152,4.1042,4486.0,4485.9,0.2213]
[1759495360756,4.1042,4486.0,4485.7,0.40099]
[1759495361956,4.1042,4486.0,4485.6,0.223]
[1759495362151,4.1042,4486.0,4485.9,0.61867]
[1759495362453,4.1042,4486.0,4485.9,1.16937]
[1759495364052,0.33,4486.0,4485.9,1.16937]
[1759495364252,0.7531,4486.4,4486.3,0.83913]
[1759495364556,0.7531,4486.4,4486.3,1.06213]
[1759495365551,0.7531,4486.4,4486.3,0.6612]
[1759495367758,0.7531,4486.4,4486.3,1.06214]
[1759495368055,0.7531,4486.4,4486.3,1.39234]
[1759495368359,3.6465,4486.9,4486.8,1.16929]
[1759495368656,3.6465,4486.9,4486.8,1.39229]
[1759495368960,3.9609,4486.9,4486.8,0.223]
[1759495369255,3.9609,4486.9,4486.8,0.4407]
[1759495369749,3.9609,4486.9,4486.8,0.84159]
[1759495370157,0.7531,4486.9,4486.8,0.84159]
[1759495371956,0.7531,4486.9,4486.8,0.4407]
[1759495372157,0.7531,4486.9,4486.8,0.223]
[1759495373261,0.7531,4486.9,4486.8,0.62389]
[1759495373458,0.7531,4486.9,4486.8,1.39229]
[1759495373658,0.7531,4486.9,4486.8,1.06209]
[1759495373859,0.7531,4486.9,4486.8,1.39229]
[1759495374061,0.7531,4486.9,4486.8,1.06209]
[1759495374255,0.7531,4486.9,4486.8,1.39229]
[1759495376759,0.5359,4486.9,4486.8,1.39229]
[1759495376961,0.5359,4487.3,4487.2,0.61855]
[1759495377264,0.5359,4487.3,4487.2,1.39225]
[1759495377465,0.7531,4487.3,4487.2,1.39225]
[1759495377760,0.7531,4487.3,4487.2,1.06205]
[1759495378663,3.5222,4487.4,4487.3,1.16925]
[1759495378859,0.3144,4487.4,4487.3,1.16925]
[1759495379055,0.3144,4487.4,4487.2,0.223]
[1759495379056,0.31615187,4487.5,4487.4,1.16924]
[1759495379257,0.00175187,4487.5,4487.4,1.16924]
[1759495380265,0.31615187,4487.5,4487.4,1.16924]
[1759495380464,0.88375187,4487.5,4487.4,1.16924]
[1759495380666,0.88375187,4487.5,4487.4,0.83904]
[1759495381565,0.4387,4487.1,4487.0,3.2078]
[1759495381764,0.7531,4487.1,4487.0,3.4308]
[1759495382763,0.7531,4487.1,4487.0,3.6431]
[1759495383167,0.7531,4487.1,4487.0,4.04397]
[1759495383673,0.7531,4487.1,4487.0,3.82097]
[1759495383872,0.7531,4487.1,4487.0,4.04397]
[1759495385469,0.1219,4487.0,4486.5,3.60871]
[1759495385773,0.7377,4486.6,4486.5,3.82102]
[1759495386071,0.7377,4486.6,4486.5,4.04402]
[1759495386368,0.7377,4486.6,4485.9,3.60876]
[1759495386369,0.1219,4486.0,4485.9,3.60876]
[1759495386575,0.8596,4486.0,4485.9,3.6431]
[1759495386772,0.8596,4486.0,4485.9,4.1714]
[1759495387472,0.5207,4486.0,4485.9,4.1714]
[1759495390577,0.6426,4486.0,4485.9,4.1714]
[1759495391071,0.5207,4486.0,4485.9,4.1714]
[1759495391575,0.3063,4486.0,4485.9,4.57237]
[1759495392272,0.13065187,4487.5,4486.8,1.14149]
[1759495392273,0.3063,4486.9,4486.8,1.14149]
[1759495392480,3.6392,4487.3,4487.2,1.14146]
[1759495392680,3.2078,4487.3,4487.2,1.36446]
[1759495394680,3.5141,4487.3,4487.2,1.36446]
[1759495395175,0.00175187,4487.5,4487.2,1.36446]
[1759495395380,0.00175187,4487.5,4487.4,1.14144]
[1759495396986,0.00175187,4487.5,4487.4,35.90344]
[1759495398482,3.2078,4488.5,4487.9,0.3105]